[Event "Prague Open 2024"]
[Site "Prague"]
[Date "2024.01.09"]
[Round "6.15"]
[White "Matras, Ondrej"]
[Black "Vidruska, Renate"]
[Result "1/2-1/2"]
[ECO "E46"]
[WhiteElo "2185"]
[BlackElo "1972"]
[Annotator "TA"]
[PlyCount "194"]
[EventDate "2024.01.02"]
[EventType "swiss"]
[EventCountry "CZE"]
[SourceTitle "playchess.com"]
[Source "ChessBase"]
[SourceQuality "1"]
[TimeControl "40/5400+30:1800+30"]

{[%evp 21,194,16,51,44,84,47,68,57,71,64,71,62,59,60,55,54,69,36,64,55,115,118,108,122,116,125,158,134,143,136,119,135,164,165,173,172,164,170,179,179,190,183,256,254,254,254,355,330,432,432,425,417,424,415,384,357,564,560,527,526,513,511,1028,1032,831,762,5651,1408,1165,568,564,525,496,481,440,312,297,293,274,230,222,222,221,112,115,68,77,60,60,59,59,41,60,34,34,34,34,34,34,19,19,19,19,19,34,0,19,19,34,34,34,34,34,34,34,34,34,34,34,34,34,34,34,34,34,34,34,34,41,7,7,7,7,7,7,7,7,7,7,7,7,7,7,7,7,7,8,8,8,8,8,8,8,8,8,8,8,8,8,0,8,0,8,0,7,0,8,8,8,8,8,8,8,8,8]} 1. d4 {[%emt 0:00:02]} Nf6 {[%emt 0:04:00]} 2. c4 {[%emt 0:00:17]} e6 {[%emt 0:00:16]} 3. Nc3 {[%emt 0:01:54]} Bb4 {[%emt 0:00:11]} 4. e3 {[%emt 0:00:15]} O-O {[%emt 0:01:30]} 5. Nge2 {[%emt 0:00:03]} c5 {[%emt 0:04:48]} 6. a3 {[%emt 0:00:14]} Bxc3+ {[%emt 0:00:52]} 7. Nxc3 {[%emt 0:01:12]} b6 {[%emt 0:16:32]} 8. Bd3 {[%emt 0:07:50]} d5 {[%emt 0:07:26]} 9. cxd5 {[%emt 0:02:49]} exd5 {[%emt 0:01:30]} 10. O-O {[%emt 0:04:31]} Bb7 {[%emt 0:07:29]} 11. b3 {[%emt 0:04:08]} Nbd7 {[%emt 0:00:51]} 12. Bb2 {[%emt 0:00:50] E44: Nimzo-Indian: Rubinstein: 4...b6 5 Ne2.} Rc8 {[%emt 0:02:48] [#]} 13. Rc1 $146 {[%emt 0:01:15] White is more active.} ({Predecessor:} 13. dxc5 bxc5 14. Nb5 Qb6 15. a4 c4 16. bxc4 dxc4 17. Bf5 Rcd8 18. Bd4 Nc5 19. Qc2 Qc6 {0-1 Vo,T (2035)-Le,P (2014) VIE-chT Ho Chi Minh City 2017 (5.43)}) 13... Qe7 {[%emt 0:01:42]} 14. Re1 {[%emt 0:12:52] White is slightly better.} Rfe8 {[%emt 0:06:49]} 15. Ne2 {[%emt 0:01:12]} Ne4 {[%emt 0:06:17][%cal Oc5c4]} 16. f3 {[%emt 0:03:42]} (16. Nf4 {is interesting.} Qh4 17. Rc2 Qg5 18. Bb5) 16... Nd6 {[%emt 0:01:32]} 17. Ng3 {[%emt 0:00:38]} Qg5 {[%emt 0:03:09]} 18. f4 {[%emt 0:08:49]} Qd8 {[%emt 0:09:13]} 19. Nf5 {[%emt 0:03:37]} (19. Qh5 Nf6 20. Qf3 c4 $17) (19. dxc5 {feels hotter.} Nxc5 20. Qg4 g6 21. Bc2) 19... Nxf5 {[%emt 0:00:26]} 20. Bxf5 {[%emt 0:00:04]} g6 {[%emt 0:00:59] [#]} (20... Rc6 $14) 21. Bxd7 $1 $16 {[%emt 0:02:27]} Qxd7 {[%emt 0:00:02]} 22. dxc5 {[%emt 0:00:17]} bxc5 {[%emt 0:15:40] [#]} 23. Rxc5 $3 {[%emt 0:00:40][%mdl 576] Remove Defender} d4 {[%emt 0:01:40]} (23... Rxc5 24. Qd4) 24. Qxd4 $40 {[%emt 0:00:41][%mdl 128] Black is in trouble.} Qxd4 {[%emt 0:00:03]} 25. Bxd4 {[%emt 0:00:10]} Rxc5 {[%emt 0:02:18]} 26. Bxc5 {[%emt 0:00:03][%mdl 4096] Endgame KRB-KRB} a5 {[%emt 0:01:02]} 27. Rd1 {[%emt 0:01:03]} Rc8 {[%emt 0:00:24]} 28. b4 {[%emt 0:00:18]} axb4 {[%emt 0:00:08]} 29. axb4 {[%emt 0:00:14]} Bc6 {[%emt 0:00:05]} 30. Rd6 {[%emt 0:00:44]} Be4 {[%emt 0:02:39]} 31. g4 {[%emt 0:02:03]} h6 {[%emt 0:01:24]} (31... f5 {is a better defense.} 32. h3 Rc7) 32. h4 $18 {[%emt 0:00:40]} Bf3 {[%emt 0:00:10]} 33. g5 hxg5 {[%emt 0:00:47]} 34. hxg5 {[%emt 0:01:57]} Rb8 {[%emt 0:00:58]} 35. Kf2 {[%emt 0:01:02]} Be4 {[%emt 0:00:07]} 36. Ke1 {[%emt 0:00:24]} Rc8 {[%emt 0:00:33]} 37. Kd2 {[%emt 0:00:22]} Bf5 {[%emt 0:00:26]} 38. Kc3 {[%emt 0:00:18]} Kf8 {[%emt 0:01:19]} (38... Rb8 $142 39. Kd4 Bh3) 39. e4 {[%emt 0:02:51]} ({Inferior is} 39. Rxg6+ Rxc5+ 40. bxc5 Bxg6 $11) 39... Bg4 {[%emt 0:00:01]} 40. Kd4 {[%emt 0:18:27]} Ke8 {[%emt 0:00:16]} 41. Ke5 {[%emt 0:30:33]} Bd7 {[%emt 0:30:48]} (41... Rd8 $142 42. Rb6 Be2) 42. Ra6 {[%emt 0:01:56]} Rc6 {[%emt 0:00:00]} 43. Ra8+ {[%emt 0:00:00]} Bc8 {[%emt 0:00:00]} 44. Bd6 {[%emt 0:00:00]} (44. Kd4 $142 Kd7 45. b5) 44... Kd8 {[%emt 0:00:00]} 45. Kd5 {[%emt 0:00:00]} (45. b5 $142 Rb6 46. Kd5 Rxb5+ 47. Kc6) 45... Ra6 {[%emt 0:00:00]} 46. Rb8 {[%emt 0:00:00]} Kd7 {[%emt 0:00:00]} 47. Be5 {[%emt 0:00:00]} Ra7 {[%emt 0:00:00]} 48. Rb6 {[%emt 0:00:00]} Bb7+ {[%emt 0:00:00]} 49. Kd4 {[%emt 0:00:00] Hoping for Bb8.} Bc6 {[%emt 0:00:00]} 50. f5 {[%emt 0:16:40]} Ra1 {[%emt 0:00:00]} 51. Bb8 {[%emt 0:02:55]} Rd1+ {[%emt 0:00:00] [#]} 52. Ke5 {[%emt 0:00:26]} ({Only move:} 52. Ke3 $1 $18) 52... Re1 $16 {[%emt 0:00:00]} 53. Kf6 {[%emt 0:00:45]} ({White should try} 53. fxg6 $16 Rxe4+ 54. Kf6 fxg6 55. Kxg6) 53... Bxe4 $14 {[%emt 0:00:00]} 54. fxg6 {[%emt 0:00:31]} Bxg6 {[%emt 0:03:14]} 55. Bf4 {[%emt 0:00:04]} Rf1 {[%emt 0:01:04]} 56. Rd6+ {[%emt 0:00:04]} Kc8 {[%emt 0:00:14]} 57. Rd4 {[%emt 0:00:29]} Kb7 {[%emt 0:00:48]} 58. Ke7 {[%emt 0:00:33]} Kb6 {[%emt 0:00:28]} 59. Bd2 {[%emt 0:00:11]} Rf5 {[%emt 0:00:32]} 60. Rd8 {[%emt 0:01:14]} Kb5 {[%emt 0:00:15]} 61. Kf8 {[%emt 0:00:16]} Kc4 {[%emt 0:01:15]} 62. Kg7 {[%emt 0:01:27]} Rd5 {[%emt 0:00:22]} 63. Rc8+ {[%emt 0:00:49]} Kb5 {[%emt 0:00:08]} (63... Kb3 $5 {[%cal Rd5d2]}) 64. Rb8+ {[%emt 0:00:30]} Kc6 {[%emt 0:01:03]} 65. Be3 {[%emt 0:00:38]} Rb5 {[%emt 0:00:11]} 66. Rc8+ {[%emt 0:00:24]} Kb7 {[%emt 0:00:29]} 67. Rc4 $1 {[%emt 0:00:14]} Re5 {[%emt 0:00:16]} 68. Rc3 {[%emt 0:00:19]} Rf5 {[%emt 0:00:12]} 69. Kh6 {[%emt 0:00:32]} Re5 {[%emt 0:01:09]} 70. Bc5 {[%emt 0:00:58]} Ka6 {[%emt 0:01:47]} 71. Ra3+ {[%emt 0:00:41]} Kb5 {[%emt 0:00:09]} 72. Bf8 {[%emt 0:00:21] Threatens to win with Ra5+.} Kb6 {[%emt 0:02:16] Against Ra5} 73. Rf3 {[%emt 0:00:55]} Re6 {[%emt 0:00:52]} 74. Kg7 {[%emt 0:00:25] Black must now prevent Rxf7.} Bh5 {[%emt 0:00:30]} 75. Rxf7 {Rf6 would be deadly.} Rg6+ {[%emt 0:00:21] The position is equal.} 76. Kh7 {[%emt 0:00:45] Threatening mate with Rf6+.} Rxg5 {[%emt 0:00:09]} 77. Rf6+ {[%emt 0:00:21]} Kb5 {[%emt 0:00:14]} 78. Kh6 {[%emt 0:00:12]} Rd5 {[%emt 0:00:09]} 79. Bc5 {[%emt 0:00:57]} Bd1 {[%emt 0:00:23]} 80. Rb6+ {[%emt 0:00:10]} Kc4 {[%emt 0:00:07]} 81. Kg6 {[%emt 0:00:15]} Bc2+ {[%emt 0:00:27]} 82. Kf6 {[%emt 0:00:09]} Rh5 {[%emt 0:00:20]} 83. Rb8 {[%emt 0:00:18]} Rh6+ {[%emt 0:00:13]} 84. Ke5 {[%emt 0:00:13]} Rh5+ {[%emt 0:00:03]} 85. Kd6 {[%emt 0:00:16]} Rh6+ {[%emt 0:00:14]} 86. Kc7 {[%emt 0:00:10]} Be4 {[%emt 0:01:09]} 87. Rd8 {[%emt 0:00:24] And now Rd4+ would win.} Bd5 {[%emt 0:00:44]} 88. Bd6 {[%emt 0:01:06]} Kb5 {[%emt 0:00:37]} 89. Rb8+ {[%emt 0:00:21]} Kc4 {[%emt 0:00:15]} 90. Kd7 {[%emt 0:00:54]} Be6+ {[%emt 0:00:46]} 91. Kc7 {[%emt 0:01:46]} Bd5 {[%emt 0:00:17]} 92. Rd8 {[%emt 0:01:25]} Kb5 {[%emt 0:00:20]} 93. Rb8+ {[%emt 0:00:29]} Kc4 {[%emt 0:00:04]} 94. b5 {[%emt 0:00:46]} Rh7+ {[%emt 0:00:25]} 95. Kb6 {[%emt 0:00:25]} Rb7+ {[%emt 0:00:24][%mdl 64] Deflection} 96. Rxb7 {[%emt 0:00:24]} Bxb7 {[%emt 0:00:02]} 97. Kxb7 {[%emt 0:00:03] White threatens Kc6 and mate.} Kxb5 {[%emt 0:00:04] Black defended with fortune.   Weighted Error Value: White=0.06 (flawless) /Black=0.30} 1/2-1/2

[Event "Prague Open 2024"]
[Site "Prague"]
[Date "2024.01.09"]
[Round "6.16"]
[White "Striskova, Lucia"]
[Black "Rakovsky, Jakub"]
[Result "0-1"]
[ECO "C44"]
[WhiteElo "1975"]
[BlackElo "2157"]
[Annotator "TA"]
[PlyCount "60"]
[EventDate "2024.01.02"]
[EventType "swiss"]
[EventCountry "CZE"]
[SourceTitle "playchess.com"]
[Source "ChessBase"]
[SourceQuality "1"]
[TimeControl "40/5400+30:1800+30"]

{[%evp 23,60,0,15,0,0,0,29,20,42,13,19,-1,4,0,18,25,87,85,80,43,33,18,75,77,77,4,81,59,60,-16,-15,-33,-36,-50,-28,-148,-135,-564,-567]} 1. e4 {[%emt 0:00:11]} e5 {[%emt 0:05:22]} 2. Nf3 {[%emt 0:00:27]} Nc6 {[%emt 0:00:49]} 3. d4 {[%emt 0:02:01]} exd4 {[%emt 0:02:37]} 4. Nxd4 {[%emt 0:00:11]} Nf6 {[%emt 0:01:06]} 5. Nc3 {[%emt 0:00:22]} Bb4 {[%emt 0:01:07]} 6. Nxc6 {[%emt 0:00:34]} bxc6 {[%emt 0:00:41]} 7. Bd3 {[%emt 0:00:10]} d5 {[%emt 0:00:39]} 8. exd5 {[%emt 0:00:37]} O-O {[%emt 0:00:56]} 9. O-O {[%emt 0:00:10]} cxd5 {[%emt 0:00:10]} 10. Bg5 {[%emt 0:00:16]} c6 {[%emt 0:00:46]} 11. Qf3 {[%emt 0:01:21]} Be7 {[%emt 0:01:11]} 12. h3 {[%emt 0:00:30]} h6 {[%emt 0:00:35]} 13. Bf4 {[%emt 0:02:00] C47: Scotch Four Knights and Four Knights with 4 g3.} Bd6 {[%emt 0:01:53]} 14. Rfe1 {[%emt 0:01:18] 14.Rfe1 has lost popularity.} Rb8 {[%emt 0:00:56]} 15. b3 {[%emt 0:02:54] White has an edge.} Rb4 {[%emt 0:00:57]} 16. Be5 {[%emt 0:04:38] [#]} Be6 $146 {[%emt 0:30:56]} ({Predecessor:} 16... Bxe5 17. Rxe5 Qd6 18. Rae1 Be6 19. Bf5 Bxf5 20. Qxf5 a5 21. a3 Rbb8 22. a4 Qb4 23. Qd3 Rbd8 {0-1 Mickiewicz,P (2331)-Bologan,V (2574) Titled Tuesday intern op 16th Nov blitz 2021 (8)}) 17. a3 {[%emt 0:11:56]} Rb7 {[%emt 0:04:04][%cal Bb4b7,Bb7d7,Bd7d6,Bd6e6,Be6g6][%mdl 32]} (17... Bxe5 {simplifies} 18. Rxe5 Rb8 19. Ree1 Qd6) 18. Qg3 {[%emt 0:05:23]} (18. Bxd6 {simplifies} Qxd6 19. Ne2 Bd7 20. Qf4) 18... Nh5 {[%emt 0:07:49]} 19. Qh2 {[%emt 0:04:54]} Bc5 {[%emt 0:07:18]} (19... Bxe5 $11 {remains equal.} 20. Qxe5 Nf6) 20. Na4 {[%emt 0:05:04]} Be7 {[%emt 0:00:56]} 21. Ba6 {[%emt 0:03:07]} (21. b4 {is interesting.} f6 22. Bd4 Bd6 23. g3) 21... Rd7 {[%emt 0:03:00]} 22. b4 {[%emt 0:00:16]} (22. Be2 $5 {[%cal Re2h5]} Nf6 23. Qg3 $14) 22... Nf6 {[%emt 0:04:53]} (22... Bf5 $11) 23. Qg3 $16 {[%emt 0:02:24]} Bf5 {[%emt 0:07:17]} 24. Re2 {[%emt 0:09:37]} ({Better is} 24. Bd3 $16 Nh5 25. Qf3) 24... Bd6 {[%emt 0:06:57]} (24... Bg6 $1 $11) 25. Bxd6 {[%emt 0:03:02]} Rxd6 {[%emt 0:00:04]} 26. Nc5 {[%emt 0:00:13]} (26. Qf4 $14 Bg6 27. Rae1) 26... Ne4 $11 {[%emt 0:01:13]} 27. Nxe4 {[%emt 0:03:29]} Bxe4 {[%emt 0:00:10]} 28. Qe3 {[%emt 0:01:07]} Re6 {[%emt 0:02:05][%cal Oe4g2] Threatens to win with ...Bxg2!} 29. Qd2 {[%emt 0:02:15] [#]} (29. Qxa7 $11 Rg6 30. f3 Bxf3 31. Rf2) 29... Rg6 $1 $17 {[%emt 0:01:01]} 30. f4 $2 {[%emt 0:02:14][%mdl 8192]} (30. f3 $17) 30... Qb6+ {[%emt 0:00:19] Weighted Error Value: White=0.54/Black=0.22 (precise)} 0-1

[Event "Prague Open 2024"]
[Site "Prague"]
[Date "2024.01.09"]
[Round "6.17"]
[White "Golis, Wiktor"]
[Black "Zielonka, Adam"]
[Result "1-0"]
[ECO "E16"]
[WhiteElo "2123"]
[BlackElo "1966"]
[Annotator "TA"]
[PlyCount "67"]
[EventDate "2024.01.02"]
[EventType "swiss"]
[EventCountry "CZE"]
[SourceTitle "playchess.com"]
[Source "ChessBase"]
[SourceQuality "1"]
[TimeControl "40/5400+30:1800+30"]

{[%evp 11,67,12,28,20,29,19,22,16,59,30,20,24,29,18,30,25,12,12,83,69,80,70,93,93,93,82,112,104,171,152,206,212,269,233,303,310,351,342,340,319,355,352,493,501,765,760,762,162,769,743,754,728,821,748,964,953,912,881]} 1. d4 {[%emt 0:00:09]} Nf6 {[%emt 0:00:07]} 2. c4 {[%emt 0:00:09]} e6 {[%emt 0:00:09]} 3. Nf3 {[%emt 0:00:07]} Bb4+ {[%emt 0:00:06]} 4. Bd2 {[%emt 0:00:07]} Qe7 {[%emt 0:00:04]} 5. e3 {[%emt 0:00:08]} Bxd2+ {[%emt 0:02:01]} 6. Qxd2 {[%emt 0:00:09]} d6 {[%emt 0:00:36]} 7. Nc3 {[%emt 0:00:29] E11: Bogo-Indian.} O-O {[%emt 0:01:00]} 8. Bd3 {[%emt 0:01:04]} e5 {[%emt 0:01:14] And now ...e4 would win.} 9. Bc2 {[%emt 0:01:24] The position is equal.} c6 {[%emt 0:09:46] [#]} 10. O-O $146 {[%emt 0:18:41]} ({Predecessor:} 10. O-O-O Re8 11. Ng5 Na6 12. h3 Nb4 13. Bb1 h6 14. dxe5 dxe5 15. Nge4 a5 16. a3 {½-½ Sebenik,M (2498)-Gazik,V (2542) Mitropa Cup Online 2021 (1.1)}) 10... Bg4 {[%emt 0:07:01]} 11. Ne1 {[%emt 0:04:47]} Re8 {[%emt 0:06:34]} 12. f3 {[%emt 0:06:56]} Be6 {[%emt 0:07:21]} 13. b3 {[%emt 0:01:06]} exd4 {[%emt 0:08:31]} 14. exd4 {[%emt 0:04:06][%cal Be3d4,Bd4d5][%mdl 32]} c5 {[%emt 0:03:50] [#]} (14... Na6 $11 {keeps the balance.}) 15. d5 $1 $16 {[%emt 0:05:37] White is more active. Black is on the road to losing.} Bd7 {[%emt 0:00:39]} 16. Nd3 $36 {[%emt 0:00:35][%cal Be1d3,Bd3f4,Bf4e2,Be2g3,Bg3e4][%mdl 2080] White is pushing.} Qe3+ {[%emt 0:05:31]} 17. Qxe3 {[%emt 0:00:30]} Rxe3 {[%emt 0:00:03]} 18. Kf2 {[%emt 0:02:34]} Re8 {[%emt 0:00:39]} 19. g4 {[%emt 0:01:01] aiming for g5.} h6 {[%emt 0:02:36]} (19... Na6 $16) 20. Nf4 {[%emt 0:02:13]} g5 {[%emt 0:16:31]} (20... Re5 $16 21. h4 Na6) 21. Nfe2 $18 {[%emt 0:01:38]} Kf8 {[%emt 0:04:55]} 22. Ng3 {[%emt 0:00:56]} Ke7 {[%emt 0:00:10]} 23. Rae1+ {[%emt 0:06:27]} Kd8 {[%emt 0:00:07]} 24. Nce4 {[%emt 0:01:11]} Nxe4+ {[%emt 0:00:41]} 25. Nxe4 {[%emt 0:00:11]} Kc7 {[%emt 0:01:00]} 26. Nf6 {[%emt 0:00:08][%mdl 64] [#] Discovered Attack} Rxe1 {[%emt 0:00:05]} (26... Re5 $142 27. Rxe5 dxe5) 27. Rxe1 {[%emt 0:00:01] Re7 would be deadly.} Kd8 {[%emt 0:00:01] Dodges Re7} (27... Na6 $142 28. Re7 Rd8 29. Rxf7 b6) 28. Bf5 {[%emt 0:02:03]} Bxf5 {[%emt 0:00:44]} 29. Re8+ {[%emt 0:01:11]} Kc7 {[%emt 0:00:02]} 30. gxf5 {[%emt 0:00:07] White is clearly winning.} a5 {[%emt 0:01:05]} 31. Re7+ {[%emt 0:01:25]} Kb6 {[%emt 0:00:41]} 32. Rxf7 {[%emt 0:00:29]} a4 {[%emt 0:00:12]} 33. Ne4 {[%emt 0:00:22]} axb3 {[%emt 0:01:20]} 34. axb3 {[%emt 0:00:10] Weighted Error Value: White=0.07 (flawless) /Black=0.39} 1-0

[Event "Prague Open 2024"]
[Site "Prague"]
[Date "2024.01.09"]
[Round "6.18"]
[White "Zemlicka, Vit"]
[Black "Krstic, Andrija Marko"]
[Result "0-1"]
[ECO "B57"]
[WhiteElo "1964"]
[BlackElo "2113"]
[Annotator "TA"]
[PlyCount "76"]
[EventDate "2024.01.02"]
[EventType "swiss"]
[EventCountry "CZE"]
[SourceTitle "playchess.com"]
[Source "ChessBase"]
[SourceQuality "1"]
[TimeControl "40/5400+30:1800+30"]

{[%evp 15,76,7,26,19,20,22,18,31,41,27,33,4,9,5,16,0,12,0,0,0,0,0,0,0,23,-95,-97,-97,-96,-93,-101,-101,-100,-178,-178,-199,-181,-307,-295,-302,-293,-279,-176,-176,-173,-260,-254,-317,-309,-293,-288,-326,-319,-312,-305,-283,-276,-1058,-244,-1184,-1161,-1050,-1060]} 1. e4 {[%emt 0:00:02]} c5 {[%emt 0:00:06]} 2. Nf3 {[%emt 0:00:07]} d6 {[%emt 0:00:06]} 3. d4 {[%emt 0:00:05]} cxd4 {[%emt 0:00:04]} 4. Nxd4 {[%emt 0:00:05]} Nf6 {[%emt 0:00:04]} 5. Nc3 {[%emt 0:00:05]} Nc6 {[%emt 0:00:04]} 6. Bc4 {[%emt 0:00:21]} Qb6 {[%emt 0:01:31]} 7. Nxc6 {[%emt 0:00:23]} bxc6 {[%emt 0:00:14]} 8. O-O {[%emt 0:00:50]} g6 {[%emt 0:04:46]} 9. Qe1 {[%emt 0:06:49] B57: Classical Sicilian: Sozin with 6...Qb6.} Bg7 {[%emt 0:08:19]} 10. e5 {[%emt 0:05:34]} dxe5 {[%emt 0:00:31]} 11. Qxe5 {[%emt 0:01:03] The position is equal.} Qb4 {[%emt 0:00:50] [#]} 12. Qe2 $146 {[%emt 0:16:53]} ({Predecessor:} 12. Qd4 Be6 13. b3 Rd8 14. a3 Qa5 15. Qe3 Ng4 16. Qe4 Qxc3 17. Qxc6+ Bd7 18. Qd5 {0-1 Matinian,N (2475)-Gabrielian,A (2463) PNWCC Online blitz JP 19th 2020 (9)}) 12... O-O {[%emt 0:02:21]} 13. a3 {[%emt 0:00:28]} Qd6 {[%emt 0:00:21]} 14. h3 {[%emt 0:05:32]} Nd5 {[%emt 0:02:14]} 15. Ne4 {[%emt 0:05:09]} Qe5 {[%emt 0:03:19]} 16. Rb1 {[%emt 0:10:16]} Rb8 {[%emt 0:02:13]} 17. Qf3 {[%emt 0:10:13]} Bf5 {[%emt 0:05:44]} 18. Re1 {[%emt 0:04:53]} Rfd8 {[%emt 0:04:34]} 19. Bb3 {[%emt 0:05:52]} h6 {[%emt 0:13:48]} 20. c4 {[%emt 0:09:15] [#]} (20. g4 $11) 20... Bxe4 $1 $17 {[%emt 0:10:26] Black continues to play with concentration.} 21. Qxe4 {[%emt 0:06:07]} Qxe4 {[%emt 0:05:43]} 22. Rxe4 {[%emt 0:00:06]} Rxb3 {[%emt 0:01:14]} 23. cxd5 {[%emt 0:00:11]} Rxd5 {[%emt 0:00:18] And now ...Rd1+ would win.} 24. Rxe7 {[%emt 0:01:05]} (24. Be3 $17) 24... Rd1+ $19 {[%emt 0:00:12]} 25. Kh2 {[%emt 0:00:07]} Rf1 {[%emt 0:05:45]} 26. Re2 {[%emt 0:04:42]} (26. Re8+ $142 Kh7 27. Re7) 26... Rd3 {[%emt 0:02:56]} 27. g3 {[%emt 0:02:31]} Rdd1 {[%emt 0:00:45]} 28. Rc2 {[%emt 0:00:09]} c5 {[%emt 0:02:28][%cal Bc6c5,Bc5c4][%mdl 32]} 29. Kg2 {[%emt 0:01:12]} Bd4 {[%emt 0:00:22]} 30. b4 {[%emt 0:00:16] [#]} (30. g4 $142) 30... c4 $1 {[%emt 0:01:47][%mdl 512]} 31. a4 {[%emt 0:04:09]} (31. Kf3 c3) 31... g5 {[%emt 0:05:05]} 32. b5 {[%emt 0:01:16]} Bb6 {[%emt 0:02:10] aiming for ...f5.} 33. Kf3 {[%emt 0:00:34]} f5 {[%emt 0:00:57][%cal Oc4c3] Threatens to win with ...c3!} 34. Ra1 {[%emt 0:00:23]} h5 {[%emt 0:05:18][%cal Oc4c3,Bh6h5,Bh5g4][%mdl 32] Hoping for ...c3!} 35. a5 {[%emt 0:00:32]} Bc7 {[%emt 0:00:13] ( -> ...g4+)} 36. Rxc4 {[%emt 0:00:20]} (36. g4 Be5 37. Ra4 Rxc1 38. Rxc1 Rxc1 39. gxh5) 36... Be5 $2 {[%emt 0:00:05]} (36... g4+ 37. hxg4 hxg4+ 38. Rxg4+ fxg4+ 39. Kxg4 Rxc1) 37. Rb1 $2 {[%emt 0:00:49]} ({Don't blunder} 37. Rc8+ $2 Kf7 $19) (37. Bb2 g4+ 38. hxg4 hxg4+ 39. Kg2 Rg1+ 40. Kh2 Rh1+ 41. Kg2 Rhg1+ 42. Kh2 Rxa1 43. Bxa1 Rxa1 44. Rc5) 37... g4+ {[%emt 0:00:07]} 38. hxg4 {[%emt 0:00:11]} hxg4+ {[%emt 0:00:06] Weighted Error Value: White=0.68/Black=0.24 (precise)} 0-1